bitfinex/quotes_SOLUSD_20230101
["timestamp","ask_amount","ask_price","bid_price","bid_amount"]
[1672589533225,40.0,9.8791,9.8701,22.77730766]
[1672589537648,40.0,9.8791,9.87,119.0746]
[1672589539123,40.0,9.8791,9.8701,40.0]
[1672589539538,40.0,9.8791,9.87,119.0746]
[1672589545129,40.0,9.8791,9.8701,40.0]
[1672589545865,23.7779,9.8792,9.8701,40.0]
[1672589560683,40.0,9.8791,9.8692,40.0]
[1672589560891,63.7385,9.8791,9.869,40.0]
[1672589561313,63.7385,9.8791,9.8688,75.13088957]
[1672589561514,23.7385,9.879,9.8688,75.13088957]
[1672589561717,40.0,9.8789,9.868,75.13088957]
[1672589561929,86.4123,9.8789,9.868,75.13088957]
[1672589562690,40.0,9.8787,9.868,75.13088957]
[1672589563297,40.0,9.8785,9.868,75.13088957]
[1672589564142,40.0,9.8785,9.8679,75.13088957]
[1672589564563,40.0,9.8783,9.8679,75.13088957]
[1672589565195,40.0,9.8781,9.8679,75.13088957]
[1672589565834,40.0,9.8779,9.8679,75.13088957]
[1672589566245,40.0,9.8779,9.8675,139.1963]
[1672589566451,40.0,9.8777,9.8675,139.1963]
[1672589567183,40.0,9.8775,9.8675,139.1963]
[1672589567846,22.5603,9.8774,9.8675,139.1963]
[1672589568026,40.0,9.8773,9.8675,139.1963]
[1672589568456,40.0,9.8771,9.8675,139.1963]
[1672589568972,40.0,9.8769,9.8675,139.1963]
[1672589569612,62.5603,9.8769,9.8675,139.1963]
[1672589569831,40.0,9.8767,9.8675,139.1963]
[1672589570228,119.17845975,9.8767,9.8675,139.1963]
[1672589580327,76.69087428,9.8766,9.8675,139.1963]
[1672589580537,40.0,9.8765,9.8675,139.1963]
[1672589580749,119.17845975,9.8765,9.8675,139.1963]
[1672589580982,79.17845975,9.8764,9.8675,139.1963]
[1672589581173,40.0,9.8763,9.8675,139.1963]
[1672589586866,76.69087428,9.8762,9.8675,139.1963]
[1672589587066,40.0,9.8761,9.8675,139.1963]
[1672589587394,76.69087428,9.876,9.8675,139.1963]
[1672589587582,40.0,9.8759,9.8675,139.1963]
[1672589587793,119.17845975,9.8759,9.8675,139.1963]
[1672589588021,195.86933403,9.8759,9.8675,139.1963]
[1672589588229,40.0,9.8757,9.8675,139.1963]
[1672589588646,40.0,9.8755,9.8675,139.1963]
[1672589590222,119.17845975,9.8755,9.8675,139.1963]
[1672589595368,40.0,9.8755,9.8675,139.1963]
[1672589611565,195.72893403,9.8755,9.8675,139.1963]
[1672589629231,155.72893403,9.8755,9.8675,139.1963]
[1672589629447,40.0,9.8783,9.8676,40.0]
[1672589629888,40.0,9.8783,9.8675,139.1963]
[1672589630290,62.9022,9.8777,9.8676,40.0]
[1672589630627,62.9022,9.8777,9.8675,139.1963]
[1672589631140,62.9022,9.8777,9.8676,40.0]
[1672589632198,62.9022,9.8777,9.8675,139.1963]
[1672589633463,62.9022,9.8777,9.8676,40.0]
[1672589635337,62.9022,9.8777,9.8675,139.1963]
[1672589636192,62.9022,9.8777,9.8676,40.0]
[1672589636813,62.9022,9.8777,9.8675,139.1963]
[1672589638485,62.9022,9.8777,9.8676,40.0]
[1672589641215,62.9022,9.8777,9.8675,139.1963]
[1672589642605,22.9022,9.8777,9.8675,139.1963]
[1672589642796,22.9022,9.8777,9.8676,40.0]
[1672589647735,40.0,9.8765,9.8675,139.1963]
[1672589650587,40.0,9.8765,9.8676,40.0]
[1672589651226,40.0,9.8765,9.8675,139.1963]
[1672589662361,40.0,9.8765,9.8676,40.0]
[1672589663299,40.0,9.8765,9.8675,139.1963]
[1672589664460,40.0,9.8765,9.8676,40.0]
[1672589664882,40.0,9.8765,9.8675,139.1963]
[1672589666781,40.0,9.8765,9.8676,40.0]
[1672589674651,40.0,9.8765,9.8675,139.1963]
[1672589674866,40.0,9.8765,9.8676,40.0]
[1672589676958,22.9022,9.8777,9.8676,40.0]
[1672589697569,22.9022,9.8777,9.8675,139.1963]
[1672589697784,40.0,9.8765,9.8675,139.1963]
[1672589698520,40.0,9.8765,9.8675,115.8417]
[1672589703151,40.0,9.8765,9.8676,40.0]
[1672589704410,40.0,9.8765,9.8675,115.8417]
[1672589704624,40.0,9.8765,9.8676,40.0]
[1672589704819,22.9022,9.8777,9.8676,40.0]
[1672589718610,75.95,9.8853,9.8677,81.0810692]
[1672589718802,123.7131,9.8853,9.8677,236.0708692]
[1672589719020,40.0,9.8852,9.8678,101.0810692]
[1672589719346,40.0,9.885,9.868,40.0]
[1672589719546,75.95,9.8849,9.8681,20.0]
[1672589719756,40.0,9.8848,9.8682,40.0]
[1672589719972,75.95,9.8847,9.8683,20.0]
[1672589720291,40.0,9.8846,9.8684,40.0]
[1672589720506,40.0,9.8844,9.8686,40.0]
[1672589720705,75.96,9.8843,9.8687,20.0]
[1672589720912,40.0,9.8842,9.8688,40.0]
[1672589721137,75.96,9.8841,9.8689,20.0]
[1672589721346,40.0,9.884,9.869,40.0]
[1672589721559,40.0,9.884,9.8692,40.0]
[1672589721760,40.0,9.884,9.8693,20.0]
[1672589721975,22.7295,9.8839,9.8694,40.0]
[1672589722171,40.0,9.8838,9.8695,20.0]
[1672589722382,40.0,9.8838,9.8696,40.0]
[1672589722597,40.0,9.8836,9.8698,40.0]
[1672589722823,40.0,9.8836,9.8699,20.0]
[1672589723139,40.0,9.8836,9.87,40.0]
[1672589723329,40.0,9.8834,9.8702,40.0]
[1672589723860,40.0,9.8834,9.8704,40.0]
[1672589724079,40.0,9.8832,9.8704,40.0]
[1672589724297,40.0,9.8832,9.8706,40.0]
[1672589724824,40.0,9.8832,9.8708,40.0]
[1672589725352,40.0,9.8832,9.871,40.0]
[1672589725561,40.0,9.8832,9.8712,40.0]
[1672589725883,40.0,9.8832,9.8714,40.0]
[1672589726090,40.0,9.8832,9.8715,20.0]
[1672589726405,40.0,9.8832,9.8716,40.0]
[1672589726614,40.0,9.8832,9.8718,40.0]
[1672589726827,40.0,9.8832,9.872,40.0]
[1672589727041,40.0,9.8832,9.8721,20.0]
[1672589727252,40.0,9.8832,9.8722,40.0]
[1672589727441,40.0,9.8832,9.8722,195.9967]
[1672589727887,40.0,9.8832,9.8724,40.0]
[1672589728409,40.0,9.8832,9.8726,40.0]
[1672589728599,40.0,9.8832,9.8728,40.0]
[1672589728808,40.0,9.8832,9.8729,20.0]
[1672589729224,40.0,9.8832,9.8731,40.0]
[1672589729438,22.7295,9.8833,9.8732,20.0]
[1672589729652,22.7295,9.8833,9.8733,40.0]
[1672589729868,22.7295,9.8833,9.8734,20.0]
[1672589730077,22.7295,9.8833,9.8735,40.0]
[1672589730298,22.7295,9.8833,9.8736,20.0]
[1672589730490,22.7295,9.8833,9.8737,40.0]
[1672589730702,22.7295,9.8833,9.8739,40.0]
[1672589730908,22.7295,9.8833,9.874,20.0]
[1672589731128,22.7295,9.8833,9.8741,40.0]
[1672589731343,22.7295,9.8833,9.8743,40.0]
[1672589731866,22.7295,9.8833,9.8745,40.0]
[1672589732081,22.7295,9.8833,9.8747,40.0]
[1672589732279,22.7295,9.8833,9.8748,20.0]
[1672589732497,22.7295,9.8833,9.8749,40.0]
[1672589732704,22.7295,9.8833,9.8751,40.0]
[1672589732905,22.7295,9.8833,9.8753,40.0]
[1672589733450,22.7295,9.8833,9.8755,40.0]
[1672589733973,22.7295,9.8833,9.8757,40.0]
[1672589734373,22.7295,9.8833,9.8758,20.0]
[1672589734900,22.7295,9.8833,9.8759,40.0]
[1672589735119,22.7295,9.8833,9.8761,40.0]
[1672589735437,22.7295,9.8833,9.8763,40.0]
[1672589735860,22.7295,9.8833,9.8765,40.0]
[1672589736491,22.7295,9.8833,9.8767,40.0]
[1672589736909,22.7295,9.8833,9.8769,40.0]
[1672589737435,22.7295,9.8833,9.8771,40.0]
[1672589737858,22.7295,9.8833,9.8772,20.0]
[1672589743969,22.7295,9.8833,9.8766,20.0]
[1672589744367,22.65216359,9.8833,9.8766,20.0]
[1672589744799,22.65216359,9.8833,9.8754,20.0]
[1672589745532,22.65216359,9.8833,9.8755,40.0]
[1672589745737,22.65216359,9.8833,9.8756,20.0]
[1672589746896,22.65216359,9.8833,9.8757,40.0]
[1672589747119,22.65216359,9.8833,9.8759,40.0]
[1672589747316,22.65216359,9.8833,9.876,20.0]
[1672589749743,22.65216359,9.8833,9.8758,40.0]
[1672589749951,22.65216359,9.8833,9.8759,20.0]
[1672589750787,22.65216359,9.8833,9.8757,20.0]
[1672589751549,22.65216359,9.8833,9.8758,40.0]
[1672589751733,22.65216359,9.8833,9.8759,20.0]
[1672589752389,22.65216359,9.8833,9.8758,20.0]
[1672589752582,40.0,9.8832,9.8758,20.0]
[1672589753523,40.0,9.8832,9.8758,132.5219]
[1672589754151,40.0,9.8832,9.8759,40.0]
[1672589754376,40.0,9.8832,9.876,20.0]
[1672589754584,22.65216359,9.8833,9.8759,40.0]
[1672589754796,22.65216359,9.8833,9.876,20.0]
[1672589756481,22.65216359,9.8833,9.8761,40.0]
[1672589756903,22.65216359,9.8833,9.8762,20.0]
[1672589757119,22.65216359,9.8833,9.8763,40.0]
[1672589757333,22.65216359,9.8833,9.8764,20.0]
[1672589759533,22.65216359,9.8833,9.8765,40.0]
[1672589759721,22.65216359,9.8833,9.8766,20.0]
[1672589760791,22.65216359,9.8833,9.8761,20.0]
[1672589764782,20.0,9.8832,9.8682,40.0]
[1672589765099,40.0,9.883,9.8671,40.0]
[1672589765313,95.97,9.8829,9.8672,20.0]
[1672589765508,40.0,9.8828,9.8672,20.0]
[1672589765715,95.97,9.8827,9.8672,20.0]
[1672589765929,40.0,9.8826,9.8672,20.0]
[1672589766139,40.0,9.8824,9.8672,20.0]
[1672589766358,40.0,9.8822,9.8673,40.0]
[1672589766555,40.0,9.882,9.8674,20.0]
[1672589766767,75.98,9.8819,9.8674,20.0]
[1672589766985,40.0,9.8818,9.8675,40.0]
[1672589767310,40.0,9.8816,9.8677,40.0]
[1672589767515,40.0,9.8814,9.8677,40.0]
[1672589767717,40.0,9.8812,9.8678,20.0]
[1672589767931,75.98,9.8811,9.8679,40.0]
[1672589768139,40.0,9.881,9.8679,40.0]
[1672589768350,64.7859,9.881,9.8679,40.0]
[1672589768559,263.67919525,9.881,9.8679,40.0]
[1672589768780,40.0,9.8808,9.8679,40.0]
[1672589769190,131.32412716,9.8807,9.8679,40.0]
[1672589769413,40.0,9.8806,9.8679,40.0]
[1672589769619,135.98909226,9.8806,9.8679,40.0]
[1672589769832,40.0,9.8804,9.8679,40.0]
[1672589770237,40.0,9.8802,9.8679,40.0]
[1672589770677,72.61819226,9.8801,9.8679,40.0]
[1672589770886,40.0,9.88,9.8679,40.0]
[1672589771205,40.0,9.8798,9.8679,40.0]
[1672589772378,40.0,9.8796,9.8679,40.0]
[1672589772913,40.0,9.8794,9.8679,40.0]
[1672589773422,23.6568,9.8793,9.8679,40.0]
[1672589775100,72.61819226,9.8797,9.8679,40.0]
[1672589775292,40.0,9.8861,9.868,67.5675]
[1672589775631,40.0,9.884,9.8681,40.0]
[1672589775831,40.0,9.884,9.8683,40.0]
[1672589776050,112.61819226,9.884,9.8685,40.0]
[1672589776246,112.61819226,9.884,9.8686,20.0]
[1672589776453,112.61819226,9.884,9.8687,40.0]
[1672589776667,112.61819226,9.884,9.8689,40.0]
[1672589776887,112.61819226,9.884,9.869,20.0]
[1672589777207,112.61819226,9.884,9.8691,40.0]
[1672589777414,112.61819226,9.884,9.8693,40.0]
[1672589777622,72.61819226,9.884,9.8695,40.0]
[1672589777817,72.61819226,9.884,9.8696,20.0]
[1672589778027,72.61819226,9.884,9.8697,40.0]
[1672589778249,72.61819226,9.884,9.8697,197.359]
[1672589778462,72.61819226,9.884,9.8699,40.0]
[1672589778889,109.64916809,9.8839,9.8701,40.0]
[1672589779095,168.35510299,9.8839,9.8703,40.0]
[1672589779309,200.97329525,9.8838,9.8705,40.0]
[1672589779500,40.0,9.8837,9.8705,40.0]
[1672589779825,240.97329525,9.8837,9.8707,40.0]
[1672589780030,240.97329525,9.8837,9.8709,40.0]
[1672589780031,200.97329525,9.8836,9.8709,40.0]
[1672589780237,40.0,9.8835,9.871,20.0]
[1672589780568,40.0,9.8833,9.8711,40.0]
[1672589780773,40.0,9.8833,9.8712,20.0]
[1672589780991,40.0,9.8833,9.8713,40.0]
[1672589781298,40.0,9.8831,9.8715,40.0]
[1672589781721,40.0,9.8829,9.8715,40.0]
[1672589781949,40.0,9.8829,9.8717,40.0]
[1672589782161,40.0,9.8829,9.8718,20.0]
[1672589782375,40.0,9.8829,9.8719,40.0]
[1672589782585,72.61819226,9.883,9.8719,40.0]
[1672589782782,58.7059349,9.8836,9.8721,40.0]
[1672589782994,58.7059349,9.8836,9.8723,40.0]
[1672589783319,75.96,9.8844,9.8725,40.0]
[1672589783533,75.95,9.8846,9.8726,165.4476]
[1672589783727,75.95,9.8848,9.8727,40.0]
[1672589783937,75.95,9.8848,9.8729,40.0]
[1672589784149,40.0,9.8847,9.8729,40.0]
[1672589784355,75.95,9.8846,9.8731,40.0]
[1672589784560,40.0,9.8847,9.8731,40.0]
[1672589784774,75.95,9.8846,9.8733,40.0]
[1672589785407,75.95,9.8846,9.8735,40.0]
[1672589785617,75.95,9.8846,9.8737,40.0]
[1672589785827,75.95,9.885,9.8738,20.0]
[1672589786046,75.95,9.885,9.8738,176.0185]
[1672589786243,72.61819226,9.8849,9.8739,40.0]
[1672589786454,75.95,9.8848,9.8739,196.0185]
[1672589786890,72.61819226,9.8847,9.8741,40.0]
[1672589787293,40.0,9.8846,9.8743,40.0]
[1672589787611,112.61819226,9.8846,9.8743,40.0]
[1672589787827,112.61819226,9.8846,9.8745,40.0]
[1672589788033,112.61819226,9.8846,9.8747,40.0]
[1672589788466,112.61819226,9.8846,9.8749,40.0]
[1672589788871,112.61819226,9.8846,9.8751,40.0]
[1672589789081,112.61819226,9.8846,9.8752,20.0]
[1672589789301,112.61819226,9.8846,9.8753,40.0]
[1672589789720,112.61819226,9.8846,9.8755,40.0]
[1672589789930,112.61819226,9.8846,9.8756,20.0]
[1672589790460,112.61819226,9.8846,9.8758,40.0]
[1672589790680,112.61819226,9.8846,9.8759,20.0]
[1672589790862,112.61819226,9.8846,9.8759,152.8659]
[1672589791612,112.61819226,9.8846,9.876,132.8659]
[1672589791834,40.0,9.8845,9.8761,20.0]
[1672589792237,72.61819226,9.8844,9.8762,132.8659]
[1672589792447,40.0,9.8843,9.8763,20.0]
[1672589792871,40.0,9.8843,9.8764,132.8659]
[1672589793068,40.0,9.8843,9.8765,20.0]
[1672589793285,112.61819226,9.8843,9.8765,20.0]
[1672589793495,112.61819226,9.8843,9.8766,136.7764]
[1672589793809,112.61819226,9.8843,9.8767,20.0]
[1672589794020,112.61819226,9.8843,9.8767,157.1846]
[1672589794665,112.61819226,9.8843,9.8768,137.1846]
[1672589794982,112.61819226,9.8843,9.8769,20.0]
[1672589795171,112.61819226,9.8843,9.8769,44.4987]
[1672589796030,112.61819226,9.8843,9.8769,157.1846]
[1672589799178,72.61819226,9.8843,9.8769,157.1846]
[1672589799906,40.0,9.8842,9.8769,157.1846]
[1672589800119,72.61819226,9.8843,9.877,40.0]
[1672589800333,72.61819226,9.8843,9.8771,20.0]
[1672589800869,40.0,9.8842,9.877,20.0]
[1672589803490,142.26736035,9.8841,9.877,20.0]
[1672589803897,40.0,9.884,9.877,20.0]
[1672589804120,112.61819226,9.884,9.877,20.0]
[1672589805061,40.0,9.8842,9.877,20.0]
[1672589805802,40.0,9.8849,9.8771,40.0]
[1672589806009,40.0,9.8849,9.8772,20.0]
[1672589806631,40.0,9.8849,9.8773,139.6359]
[1672589806847,40.0,9.8849,9.8774,20.0]
[1672589807284,40.0,9.8859,9.8774,20.0]
[1672589807285,40.0,9.8859,9.8774,158.7259]
[1672589807810,40.0,9.8859,9.8775,138.7259]
[1672589808355,40.0,9.8859,9.8776,158.7259]
[1672589808646,40.0,9.8859,9.8777,138.7259]
[1672589808967,40.0,9.8859,9.8778,20.0]
[1672589809171,40.0,9.8859,9.8778,156.4616]
[1672589814836,40.0,9.8859,9.8779,135.9196]
[1672589815465,40.0,9.8853,9.8779,135.9196]
[1672589823974,142.26736035,9.8852,9.8779,135.9196]
[1672589824188,40.0,9.8851,9.8779,135.9196]
[1672589824398,182.26736035,9.8851,9.8779,135.9196]
[1672589824720,142.26736035,9.885,9.8779,135.9196]
[1672589824920,40.0,9.8849,9.8779,135.9196]
[1672589825131,109.64916809,9.8849,9.8779,135.9196]
[1672589825668,72.61819226,9.8848,9.8779,135.9196]
[1672589825884,40.0,9.8847,9.8779,135.9196]
[1672589826286,112.61819226,9.8847,9.8779,135.9196]
[1672589829865,240.97329525,9.8847,9.8779,135.9196]
[1672589832703,171.32412716,9.8847,9.8779,135.9196]
[1672589834594,171.32412716,9.8847,9.8694,75.13088957]
[1672589834595,241.05996192,9.8847,9.8694,75.13088957]
[1672589834803,241.05996192,9.8847,9.8646,301.28198529]
[1672589834804,40.0,9.8845,9.8696,141.7177]
[1672589835013,40.0,9.8843,9.8697,181.7177]
[1672589835244,40.0,9.8841,9.8699,40.0]
[1672589835450,75.96,9.884,9.8699,40.0]
[1672589835656,60.0,9.8839,9.8699,40.0]
[1672589835853,40.0,9.8837,9.8701,40.0]
[1672589836065,40.0,9.8835,9.8701,40.0]
[1672589836279,95.96,9.8834,9.8701,40.0]
[1672589836604,40.0,9.8833,9.8703,40.0]
[1672589836805,40.0,9.8831,9.8703,40.0]
[1672589837009,40.0,9.8829,9.8705,40.0]
[1672589837220,20.0,9.8828,9.8705,40.0]
[1672589837435,40.0,9.8827,9.8705,40.0]
[1672589837646,157.98154238,9.8827,9.8705,40.0]
[1672589837975,40.0,9.8825,9.8705,40.0]
[1672589838182,40.0,9.8823,9.8705,40.0]
[1672589838501,40.0,9.8821,9.8705,40.0]
[1672589838923,40.0,9.8819,9.8705,40.0]
[1672589839348,40.0,9.8817,9.8705,40.0]
[1672589839652,143.82103464,9.8816,9.8705,40.0]
[1672589839847,40.0,9.8815,9.8705,40.0]
[1672589840062,245.37032495,9.8815,9.8705,40.0]
[1672589840283,40.0,9.8813,9.8705,40.0]
[1672589840698,40.0,9.8811,9.8705,40.0]
[1672589841022,40.0,9.8809,9.8705,40.0]
[1672589841427,40.0,9.8807,9.8705,40.0]
[1672589841848,86.08969031,9.8806,9.8705,40.0]
[1672589842056,40.0,9.8805,9.8705,40.0]
[1672589842268,101.54929031,9.8805,9.8705,40.0]
[1672589842477,40.0,9.8803,9.8705,40.0]
[1672589842917,40.0,9.8801,9.8705,40.0]
[1672589843316,101.54929031,9.8801,9.8705,40.0]
[1672589843857,23.6465,9.88,9.8705,40.0]
[1672589844899,85.19579031,9.88,9.8705,40.0]
[1672589845096,40.0,9.8799,9.8705,40.0]
[1672589845536,63.6465,9.8799,9.8705,40.0]
[1672589847739,23.6465,9.8799,9.8705,40.0]
[1672589853531,40.0,9.8798,9.8705,40.0]
[1672589857418,40.0,9.8798,9.8704,116.7728]
[1672589857733,64.6924,9.8798,9.8704,116.7728]
[1672589860861,64.6924,9.8798,9.8705,40.0]
[1672589862968,24.6924,9.8798,9.8705,40.0]
[1672589866128,24.6924,9.8798,9.8704,116.7728]
[1672589866342,40.0,9.8797,9.8704,116.7728]
[1672589866773,112.61819226,9.8797,9.8704,116.7728]
[1672589867389,112.61819226,9.8797,9.8705,40.0]
[1672589868541,112.61819226,9.8797,9.8704,116.7728]
[1672589870020,72.61819226,9.8797,9.8705,40.0]
[1672589874030,40.0,9.8796,9.8705,40.0]
[1672589882016,72.61819226,9.8797,9.8705,40.0]
[1672589883170,40.0,9.8796,9.8705,40.0]
[1672589888123,72.61819226,9.8797,9.8705,40.0]
[1672589890963,40.0,9.8796,9.8704,116.7728]
[1672589892840,40.0,9.8796,9.8705,40.0]
[1672589894330,40.0,9.8796,9.8704,116.7728]
[1672589894740,40.0,9.8796,9.8705,40.0]
[1672589897150,40.0,9.8796,9.8704,116.7728]
[1672589897366,40.0,9.8796,9.8705,40.0]
[1672589898326,96.38919226,9.8797,9.8705,40.0]
[1672589898847,40.0,9.8796,9.8705,40.0]
[1672589900435,40.0,9.8796,9.8704,116.7728]
[1672589903783,23.771,9.8797,9.8705,40.0]
[1672589906621,40.0,9.8796,9.8704,116.7728]
[1672589907052,40.0,9.8796,9.8705,40.0]
[1672589911044,40.0,9.8796,9.8705,39.08]
[1672589911480,40.0,9.8796,9.8704,116.7728]
[1672589912749,40.0,9.8796,9.8705,40.0]
[1672589913359,40.0,9.8796,9.8704,116.7728]
[1672589914321,40.0,9.8796,9.8705,40.0]
[1672589914941,40.0,9.8796,9.8704,116.7728]
[1672589915155,40.0,9.8796,9.8705,40.0]
[1672589916217,40.0,9.8796,9.8704,116.7728]
[1672589916428,40.0,9.8796,9.8705,40.0]
[1672589916820,40.0,9.8796,9.8704,116.7728]
[1672589919775,40.0,9.8796,9.8705,40.0]
[1672589920621,23.771,9.8797,9.8705,40.0]
[1672589924409,40.0,9.8796,9.8704,116.7728]
[1672589926199,23.771,9.8797,9.8705,40.0]
[1672589932433,40.0,9.8796,9.8705,40.0]
[1672589936431,40.0,9.8796,9.8704,116.7728]
[1672589937478,40.0,9.8796,9.8705,40.0]
[1672589938522,40.0,9.8796,9.8704,116.7728]
[1672589939357,40.0,9.8796,9.8705,157.37386228]
[1672589942097,40.0,9.8796,9.8706,40.0]
[1672589942308,40.0,9.8796,9.8707,157.36386228]
[1672589942530,40.0,9.8796,9.8708,40.0]
[1672589942731,40.0,9.8796,9.8709,157.36386228]
[1672589942940,40.0,9.8796,9.871,40.0]
[1672589943150,23.771,9.8797,9.8712,40.0]
[1672589943360,23.771,9.8797,9.8714,40.0]
[1672589943572,23.771,9.8797,9.8715,157.36386228]
[1672589943789,23.771,9.8797,9.8716,40.0]
[1672589943987,23.771,9.8797,9.8714,40.0]
[1672589944202,23.771,9.8797,9.8712,40.0]
[1672589944416,23.771,9.8797,9.8705,40.0]
[1672589950402,40.0,9.8796,9.8705,40.0]
[1672589952810,23.771,9.8797,9.8705,40.0]
[1672589964283,40.0,9.8796,9.8705,40.0]
[1672589964679,23.771,9.8797,9.8705,40.0]
[1672589985732,23.771,9.8797,9.8705,39.09]
[1672589987006,75.96,9.8843,9.8706,20.0]
[1672589987231,40.0,9.8884,9.8755,75.13088957]
[1672589987526,143.51667226,9.8883,9.8757,40.0]
[1672589987740,143.51667226,9.8883,9.8759,40.0]
[1672589987741,47.3423,9.8882,9.8759,40.0]
[1672589987937,75.93,9.8881,9.876,20.0]
[1672589988147,40.0,9.888,9.8761,521.16202225]
[1672589988357,75.93,9.8879,9.8763,40.0]
[1672589988573,75.93,9.8879,9.8764,481.16202225]
[1672589988771,123.39398012,9.8878,9.8765,20.0]
[1672589988984,75.93,9.8877,9.8766,40.0]
[1672589989200,40.0,9.8876,9.8767,501.16202225]
[1672589989420,40.0,9.8874,9.8769,40.0]
[1672589989619,75.93,9.8873,9.877,20.0]
[1672589989820,40.0,9.8872,9.8771,142.78086228]
[1672589990030,40.0,9.887,9.8771,142.78086228]
[1672589990260,75.94,9.8869,9.8771,142.78086228]
[1672589990575,40.0,9.8867,9.8771,142.78086228]
[1672589990785,40.0,9.8865,9.8771,142.78086228]
[1672589990998,40.0,9.8863,9.8771,142.78086228]
[1672589991314,40.0,9.8861,9.8771,142.78086228]
[1672589991637,40.0,9.8859,9.8771,142.78086228]
[1672589991849,95.95,9.8858,9.8771,142.78086228]
[1672589992032,40.0,9.8857,9.8771,142.78086228]
[1672589992255,95.95,9.8856,9.8771,142.78086228]
[1672589992470,40.0,9.8855,9.8771,142.78086228]
[1672589992682,40.0,9.8853,9.8771,142.78086228]
[1672589992888,95.95,9.8852,9.8771,142.78086228]
[1672589993098,40.0,9.8851,9.8771,142.78086228]
[1672589993415,40.0,9.8849,9.8771,142.78086228]
[1672589993626,40.0,9.8847,9.8771,142.78086228]
[1672589993827,40.0,9.8845,9.8771,142.78086228]
[1672589994038,40.0,9.8843,9.8771,142.78086228]
[1672589994254,95.96,9.8842,9.8771,142.78086228]
[1672589994474,40.0,9.8841,9.8771,142.78086228]
[1672589994676,95.96,9.884,9.8771,142.78086228]
[1672589994899,40.0,9.8839,9.8771,142.78086228]
[1672589995092,40.0,9.8837,9.8771,142.78086228]
[1672589995301,40.0,9.8835,9.8771,142.78086228]
[1672589995511,75.96,9.8834,9.8771,142.78086228]
[1672589995727,60.0,9.8833,9.8771,142.78086228]
[1672589996141,48.50073566,9.8832,9.8771,142.78086228]
[1672589996359,60.0,9.8831,9.8771,142.78086228]
[1672589996567,121.50899892,9.8831,9.8771,142.78086228]
[1672589996982,40.0,9.8829,9.8694,40.0]
[1672589997193,20.0,9.8828,9.8694,40.0]
[1672589997415,40.0,9.8827,9.8694,40.0]
[1672589997620,40.0,9.8825,9.8694,40.0]
[1672589997823,40.0,9.8823,9.8694,184.1399]
[1672589998033,20.0,9.8822,9.8694,184.1399]
[1672589998255,40.0,9.8821,9.8694,184.1399]
[1672589998461,87.994,9.8821,9.8696,40.0]
[1672589999102,40.0,9.8819,9.8696,40.0]
[1672589999613,40.0,9.8817,9.8696,40.0]
[1672590000259,40.0,9.8815,9.8696,40.0]
[1672590000776,40.0,9.8813,9.8696,40.0]
[1672590001402,40.0,9.8811,9.8696,40.0]
[1672590001819,40.0,9.8811,9.8695,119.9229]
[1672590002050,40.0,9.8809,9.8695,119.9229]
[1672590002579,40.0,9.8809,9.8696,40.0]
[1672590002796,40.0,9.8807,9.8696,40.0]
[1672590003740,40.0,9.8805,9.8696,40.0]
[1672590004346,40.0,9.8803,9.8696,40.0]
[1672590004978,40.0,9.8801,9.8696,40.0]
[1672590005207,40.0,9.8801,9.8695,143.1927]
[1672590005735,40.0,9.8799,9.8696,40.0]
[1672590006146,40.0,9.8797,9.8696,40.0]
[1672590006874,40.0,9.8795,9.8696,40.0]
[1672590007502,40.0,9.8793,9.8696,40.0]
[1672590008134,23.7394,9.8792,9.8696,40.0]
[1672590008770,40.0,9.8791,9.8696,40.0]
[1672590008979,64.5373,9.8791,9.8696,40.0]
[1672590010453,24.5373,9.8791,9.8696,40.0]
[1672590010972,24.5373,9.8791,9.8695,143.1927]
[1672590011510,61.50899892,9.879,9.8695,143.1927]
[1672590011719,40.0,9.8789,9.8695,143.1927]
[1672590011930,76.0,9.8788,9.8695,143.1927]
[1672590012471,40.0,9.8787,9.8695,143.1927]
[1672590012650,76.0,9.8786,9.8695,143.1927]
[1672590012860,61.50373364,9.8786,9.8695,143.1927]
[1672590013075,40.0,9.8785,9.8695,143.1927]
[1672590014142,40.0,9.8785,9.8696,108.668]
[1672590016768,110.32103966,9.8785,9.8696,108.668]
[1672590018570,110.32103966,9.8785,9.8697,114.8445]
[1672590022449,110.32103966,9.8785,9.8698,111.2009]